bitfinex/quotes_SOLUSD_20240711
["timestamp","ask_amount","ask_price","bid_price","bid_amount"]
[1720708417670,7.1029,140.79,140.74,7.1052]
[1720708417843,7.61993995,140.83,140.72,35.5292]
[1720708418045,7.1008,140.83,140.76,17.7603]
[1720708418459,7.1004,140.84,140.76,17.7603]
[1720708418770,11.00067117,140.87,140.8,7.102]
[1720708419275,11.00067117,140.87,140.79,7.1027]
[1720708420139,45.0,140.86,140.79,7.1027]
[1720708420370,7.0998,140.85,140.79,7.1027]
[1720708421149,11.00067117,140.87,140.78,39.5572]
[1720708421349,7.1003,140.84,140.79,7.1026]
[1720708421547,7.0998,140.85,140.79,7.1026]
[1720708421782,7.0998,140.85,140.8,7.102]
[1720708421946,7.0993,140.86,140.81,7.1017]
[1720708422438,7.0993,140.86,140.8,7.1021]
[1720708422653,7.1006,140.84,140.79,7.1026]
[1720708422972,17.7487,140.86,140.78,21.7996]
[1720708423173,45.0,140.85,140.78,21.7996]
[1720708423345,7.1006,140.84,140.79,7.1027]
[1720708423546,7.1006,140.84,140.78,28.9027]
[1720708423746,7.1007,140.83,140.78,28.9027]
[1720708423976,17.7487,140.86,140.78,21.7996]
[1720708424266,17.7487,140.86,140.77,17.7589]
[1720708424267,45.17,140.85,140.77,17.7589]
[1720708424444,45.17,140.85,140.78,7.1031]
[1720708424874,7.1009,140.83,140.78,7.1031]
[1720708425172,7.1009,140.83,140.79,0.68562622]
[1720708425343,7.1009,140.83,140.78,7.1031]
[1720708425539,7.1012,140.82,140.77,24.8625]
[1720708425768,7.1009,140.83,140.78,7.1032]
[1720708426170,7.1009,140.83,140.77,17.7589]
[1720708426171,7.1003,140.84,140.79,7.1027]
[1720708427578,7.1003,140.84,140.8,0.69540014]
[1720708427744,7.0998,140.85,140.8,7.79750014]
[1720708427946,7.1002,140.84,140.8,0.69540014]
[1720708428147,7.1007,140.83,140.8,0.69540014]
[1720708428547,7.1004,140.84,140.8,0.69540014]
[1720708429049,7.1004,140.84,140.8,1.31869587]
[1720708430273,7.101,140.83,140.77,7.1033]
[1720708430577,7.101,140.83,140.78,7.1029]
[1720708431468,7.1018,140.81,140.76,24.8639]
[1720708431668,35.4964,140.86,140.73,17.7641]
[1720708431859,7.1033,140.78,140.73,24.8696]
[1720708432061,30.57,140.83,140.73,17.7641]
[1720708432376,7.1024,140.8,140.75,7.1044]
[1720708432958,7.1024,140.8,140.76,0.40654253]
[1720708435182,7.1024,140.8,140.75,7.1044]
[1720708435366,7.1028,140.79,140.74,7.1051]
[1720708435549,7.1034,140.78,140.73,17.7641]
[1720708436350,7.1034,140.78,140.73,24.8698]
[1720708436549,7.1028,140.79,140.74,7.1052]
[1720708437076,7.1023,140.8,140.75,7.1047]
[1720708437876,7.1028,140.79,140.74,7.1051]
[1720708438052,7.1028,140.79,140.75,1.42066245]
[1720708438558,7.1033,140.78,140.73,24.8697]
[1720708439480,7.104,140.77,140.73,17.7641]
[1720708440368,7.1049,140.75,140.7,24.8741]
[1720708440669,17.7573,140.79,140.71,0.49580678]
[1720708440885,33.2709,140.82,140.72,7.1059]
[1720708441068,7.1038,140.77,140.72,24.8713]
[1720708441264,7.1044,140.76,140.71,7.1067]
[1720708441659,7.1038,140.77,140.72,7.1061]
[1720708442381,7.1044,140.76,140.71,24.8732]
[1720708442582,7.1047,140.75,140.71,17.7665]
[1720708442757,17.7585,140.78,140.68,40.1497]
[1720708442955,7.1051,140.75,140.7,7.1071]
[1720708443649,7.1044,140.76,140.71,7.1067]
[1720708443855,7.105,140.75,140.7,17.7681]
[1720708444053,7.1053,140.74,140.7,17.7681]
[1720708444558,7.1048,140.75,140.7,24.8752]
[1720708444883,34.3244,140.76,140.71,7.1068]
[1720708445087,7.1049,140.75,140.7,24.8753]
[1720708446380,7.1071,140.71,140.66,24.881]
[1720708446884,16.1893,140.76,140.68,17.77]
[1720708447180,7.1063,140.72,140.68,17.77]
[1720708447360,7.1059,140.73,140.68,17.77]
[1720708447561,34.3254,140.74,140.69,7.1077]
[1720708447767,27.22,140.74,140.7,7.1071]
[1720708448168,27.22,140.74,140.71,1.41937181]
[1720708448371,34.3255,140.74,140.69,7.1076]
[1720708448675,7.1055,140.74,140.69,7.1076]
[1720708449079,7.1058,140.73,140.69,1.42129452]
[1720708449475,7.1048,140.75,140.69,1.42129452]
[1720708449676,26.62685847,140.76,140.69,1.42129452]
[1720708449881,7.1048,140.75,140.7,7.1069]
[1720708450290,7.1048,140.75,140.69,7.1076]
[1720708450488,19.52225847,140.76,140.7,7.1073]
[1720708450694,19.52225847,140.76,140.69,7.1077]
[1720708450897,7.1053,140.74,140.69,7.1077]
[1720708451590,7.1049,140.75,140.7,7.1072]
[1720708451774,15.5191,140.79,140.7,17.7679]
[1720708451967,7.1046,140.76,140.71,7.1065]
[1720708452203,7.1038,140.77,140.72,7.1062]
[1720708452373,7.1049,140.75,140.7,24.8747]
[1720708452573,7.1043,140.76,140.71,7.1067]
[1720708452779,7.1039,140.77,140.72,7.1062]
[1720708453085,7.1039,140.77,140.72,7.1059]
[1720708453398,55.09831495,140.85,140.72,6.2136]
[1720708453702,47.15403995,140.86,140.75,17.761]
[1720708453877,7.61993995,140.84,140.75,17.761]
[1720708454081,9.71177804,140.83,140.75,17.761]
[1720708454290,7.1015,140.82,140.77,7.1037]
[1720708455087,32.73014672,140.86,140.78,8.38293746]
[1720708455293,9.71209838,140.85,140.77,17.7592]
[1720708455501,9.71209838,140.84,140.77,17.7592]
[1720708455685,7.1003,140.84,140.79,7.1027]
[1720708455883,7.0998,140.85,140.79,7.1027]
[1720708456104,7.0998,140.85,140.8,7.1021]
[1720708456402,7.0994,140.86,140.81,7.1017]
[1720708456617,7.0999,140.85,140.79,17.7566]
[1720708456789,7.0999,140.85,140.79,24.8589]
[1720708457108,7.1003,140.84,140.79,24.8589]
[1720708457403,17.7487,140.86,140.76,33.4019]
[1720708457610,16.67588419,140.85,140.75,13.656]
[1720708457782,7.1033,140.78,140.73,32.9168]
[1720708457974,22.5029,140.83,140.73,15.1532]
[1720708458179,7.1037,140.78,140.72,7.1061]
[1720708458403,7.1048,140.75,140.71,6.3279]
[1720708458584,7.1044,140.76,140.71,6.3279]
[1720708458801,30.62,140.8,140.69,22.2608]
[1720708458982,7.1059,140.73,140.69,15.1532]
[1720708459205,7.1066,140.72,140.67,17.7711]
[1720708459714,7.1066,140.72,140.67,24.8798]
[1720708460090,7.1066,140.72,140.67,17.7711]
[1720708460293,7.107,140.71,140.66,7.1091]
[1720708460487,7.1073,140.7,140.65,7.1098]
[1720708460806,7.1073,140.7,140.64,40.4896]
[1720708460807,7.1069,140.71,140.66,7.1093]
[1720708461216,7.1069,140.71,140.65,7.1097]
[1720708461387,7.1074,140.7,140.65,7.1097]
[1720708462206,7.1079,140.69,140.64,47.5997]
[1720708463002,17.7636,140.74,140.64,47.5997]
[1720708463214,7.1074,140.7,140.64,47.5997]
[1720708463814,7.1074,140.7,140.65,7.1096]
[1720708464012,17.7636,140.74,140.65,7.1096]
[1720708464013,7.107,140.71,140.65,7.1096]
[1720708464303,7.107,140.71,140.66,7.1092]
[1720708464688,7.1073,140.7,140.65,7.1097]
[1720708465801,7.1069,140.71,140.65,7.1097]
[1720708465981,7.1073,140.7,140.65,7.1097]
[1720708466182,17.7636,140.74,140.64,40.4896]
[1720708466488,7.1066,140.72,140.66,24.8817]
[1720708466691,7.1068,140.71,140.66,24.8817]
[1720708467000,7.1064,140.72,140.67,7.1086]
[1720708467187,7.1066,140.72,140.67,7.1087]
[1720708467513,7.1066,140.72,140.67,7.1084]
[1720708468218,26.49137958,140.75,140.65,0.17]
[1720708468219,7.1057,140.74,140.68,17.7706]
[1720708468399,10.86757958,140.75,140.68,17.7706]
[1720708468718,7.1063,140.72,140.67,7.1087]
[1720708469292,7.1059,140.73,140.67,7.1087]
[1720708469914,7.1068,140.71,140.66,7.1091]
[1720708470282,7.1068,140.71,140.66,7.62589919]
[1720708471085,28.62967958,140.75,140.66,0.51679919]
[1720708471319,7.1069,140.71,140.66,7.62569919]
[1720708472415,7.1069,140.71,140.67,1.35985215]
[1720708473100,7.1073,140.7,140.66,1.35985215]
[1720708473302,45.17,140.74,140.66,1.35985215]
[1720708473303,7.1069,140.71,140.66,1.35985215]
[1720708474110,7.1078,140.69,140.64,29.8249]
[1720708474615,17.7648,140.73,140.62,24.8885]
[1720708474616,7.1088,140.67,140.62,24.8885]
[1720708474788,17.7673,140.71,140.62,24.8885]
[1720708474983,7.1086,140.68,140.62,24.8885]
[1720708475394,7.1086,140.68,140.63,7.1106]
[1720708476003,7.1076,140.7,140.65,7.1098]
[1720708476614,7.1061,140.73,140.66,17.7729]
[1720708476909,7.39301672,140.74,140.68,17.7704]
[1720708477111,7.61993995,140.79,140.68,24.2043]
[1720708477290,18.1224369,140.79,140.69,0.17]
[1720708477490,18.1224369,140.79,140.69,45.34]
[1720708477700,14.72313995,140.79,140.73,7.1054]
[1720708477925,7.61993995,140.79,140.74,18.41942032]
[1720708478112,7.1023,140.8,140.75,7.1046]
[1720708478318,7.1023,140.8,140.75,0.6625464]
[1720708478699,7.1028,140.79,140.75,0.6625464]
[1720708479396,7.1028,140.79,140.75,1.42074179]
[1720708479723,7.1034,140.78,140.73,7.1056]
[1720708480031,21.07239485,140.83,140.71,24.873]
[1720708480032,7.1041,140.77,140.71,24.873]
[1720708480397,17.7574,140.79,140.69,7.1076]
[1720708480634,7.1044,140.76,140.7,7.1072]
[1720708480928,7.1048,140.75,140.69,7.76607038]
[1720708481100,7.1048,140.75,140.69,7.1077]
[1720708481300,7.1058,140.73,140.68,418.6124]
[1720708481502,17.76,140.77,140.68,24.2043]
[1720708481732,17.76,140.77,140.68,31.3125]
[1720708481733,7.1054,140.74,140.68,31.3125]
[1720708482106,24.3969,140.77,140.67,15.2276]
[1720708482309,7.1066,140.72,140.67,15.2276]
[1720708483000,7.1068,140.71,140.66,7.1092]
[1720708483434,17.7624,140.75,140.67,7.1086]
[1720708483632,7.1063,140.72,140.67,7.1086]
[1720708484108,7.1063,140.72,140.66,7.1091]
[1720708484314,7.1068,140.71,140.66,7.1091]
[1720708484517,7.1068,140.71,140.65,24.1472]
[1720708484518,7.1068,140.71,140.65,31.2568]
[1720708485128,7.1068,140.71,140.66,7.1091]
[1720708485726,7.1068,140.71,140.65,31.257]
[1720708486343,7.1064,140.72,140.66,7.109]
[1720708486521,7.1068,140.71,140.66,7.109]
[1720708486949,7.1063,140.72,140.67,7.1087]
[1720708487614,7.1063,140.72,140.66,7.1091]
[1720708488414,7.1069,140.71,140.66,7.1091]
[1720708489716,7.1065,140.72,140.67,7.1087]
[1720708489909,7.1065,140.72,140.66,7.1091]
[1720708491127,7.107,140.71,140.66,7.1091]
[1720708493340,48.3824,140.75,140.67,17.7714]
[1720708493542,22.2554,140.77,140.65,41.9206]
[1720708493851,7.1049,140.75,140.69,24.8769]
[1720708494511,7.1053,140.74,140.69,24.8769]
[1720708495135,7.1053,140.74,140.69,17.7695]
[1720708495542,7.1053,140.74,140.69,24.8769]
[1720708495914,7.1053,140.74,140.69,17.7695]
[1720708496114,7.1058,140.73,140.68,7.1081]
[1720708496428,17.7608,140.76,140.66,17.7721]
[1720708496611,7.1071,140.71,140.66,17.7721]
[1720708496814,17.7634,140.74,140.66,17.7721]
[1720708496815,7.1073,140.7,140.66,17.7721]
[1720708497351,17.7658,140.72,140.63,15.1477]
[1720708497648,7.1082,140.69,140.63,15.1477]
[1720708498329,7.1082,140.69,140.64,8.53184829]
[1720708500016,7.1083,140.68,140.64,1.42184829]
[1720708500223,7.1083,140.68,140.63,15.1477]
[1720708500437,7.1088,140.67,140.63,15.1477]
[1720708500643,7.1085,140.68,140.63,15.1477]
[1720708501040,17.7689,140.7,140.63,15.1477]
[1720708501245,17.7689,140.7,140.62,17.7782]
[1720708501246,45.0,140.69,140.62,17.7782]
[1720708501430,7.1094,140.66,140.61,14.5642175]
[1720708501641,7.109,140.67,140.61,14.5642175]
[1720708501844,7.109,140.67,140.61,32.3438175]
[1720708502026,17.7708,140.68,140.61,7.4524175]
[1720708502225,7.1091,140.67,140.62,7.1113]
[1720708502552,45.0,140.69,140.61,7.4524175]
[1720708502553,7.1093,140.66,140.61,14.5639175]
[1720708503222,7.109,140.67,140.61,14.5639175]
[1720708503525,7.109,140.67,140.62,7.1113]
[1720708503870,45.0,140.69,140.62,17.7781]
[1720708504034,7.1086,140.68,140.63,7.1107]
[1720708504230,7.1088,140.67,140.62,24.8893]
[1720708504553,62.7697,140.69,140.61,7.4524175]
[1720708504854,7.11,140.65,140.61,7.4524175]
[1720708505238,7.1104,140.64,140.61,7.4524175]
[1720708505429,7.11,140.65,140.61,7.4524175]
[1720708506339,7.11,140.65,140.61,8.87264687]
[1720708506643,7.1094,140.66,140.61,15.98444687]
[1720708506857,15.795,140.71,140.61,26.65214687]
[1720708507024,7.1085,140.68,140.62,7.111]
[1720708507231,7.1083,140.68,140.63,26.30798525]
[1720708507546,7.1075,140.7,140.65,7.1095]
[1720708507931,7.1075,140.7,140.66,1.42018228]
[1720708508134,7.1075,140.7,140.65,8.52978325]
[1720708508653,7.1064,140.72,140.66,15.6221]
[1720708508959,10.84341485,140.74,140.68,7.1083]
[1720708509137,9.69185713,140.73,140.69,7.1077]
[1720708509337,9.69185713,140.72,140.7,1.42127299]
[1720708509560,33.90379514,140.77,140.69,24.8767]
[1720708509773,25.54921441,140.76,140.69,24.8767]
[1720708510062,7.1069,140.71,140.68,6.5322]
[1720708510240,7.1069,140.71,140.66,40.5037]
[1720708510437,25.38093995,140.76,140.67,7.1085]
[1720708510775,7.1061,140.73,140.68,7.1082]
[1720708511395,7.1054,140.74,140.68,7.1082]
[1720708511540,9.6942638,140.73,140.68,7.1082]
[1720708511744,7.1054,140.74,140.68,7.1082]
[1720708511936,16.8004492,140.73,140.68,7.1082]
[1720708512244,7.1063,140.72,140.67,7.1088]
[1720708512448,7.107,140.71,140.66,40.5036]
[1720708512633,25.38093995,140.76,140.66,40.5036]
[1720708512634,17.7636,140.74,140.66,15.6221]
[1720708512830,7.1069,140.71,140.66,15.6221]
[1720708513035,7.1069,140.71,140.66,22.7314]
[1720708513432,45.17,140.73,140.66,15.6221]
[1720708513634,9.69625161,140.72,140.65,6.4601]
[1720708513854,45.0,140.71,140.65,6.4601]
[1720708514046,45.0,140.72,140.65,6.4601]
[1720708514262,7.108,140.69,140.65,6.4601]
[1720708514434,45.17,140.73,140.65,13.5697]
[1720708514636,7.1069,140.71,140.65,13.5697]
[1720708514863,7.1069,140.71,140.66,7.1091]
[1720708515054,45.0,140.73,140.67,7.1086]
[1720708515239,7.1063,140.72,140.67,7.1086]
[1720708516779,7.1058,140.73,140.67,7.1086]
[1720708516941,9.6924558,140.72,140.67,7.1086]
[1720708517272,7.1058,140.73,140.67,7.1086]
[1720708517454,16.79862704,140.72,140.67,7.1086]
[1720708517658,7.1063,140.72,140.66,24.8819]
[1720708517841,7.1063,140.72,140.67,7.1088]
[1720708518335,7.1063,140.72,140.68,1.01204143]
[1720708518740,7.1068,140.71,140.66,24.882]
[1720708518974,7.1068,140.71,140.66,17.7728]
[1720708519144,17.7649,140.73,140.65,6.4601]
[1720708519343,9.85791281,140.72,140.65,6.4601]
[1720708519572,7.1079,140.69,140.65,6.4601]
[1720708519957,7.1085,140.68,140.65,6.4601]
[1720708520166,7.1085,140.68,140.63,24.8869]
[1720708520167,62.7672,140.71,140.63,17.7762]
[1720708520470,7.1088,140.67,140.62,23.234]
[1720708520848,7.1095,140.66,140.62,23.234]
[1720708521160,7.1093,140.66,140.62,23.234]
[1720708521480,7.1101,140.65,140.62,16.5704]
[1720708522370,7.1101,140.65,140.61,0.8333175]
[1720708522668,7.1095,140.66,140.61,0.8333175]
[1720708522882,7.1095,140.66,140.61,7.9451175]
[1720708523560,7.1099,140.65,140.61,0.8333175]
[1720708523756,17.7696,140.69,140.61,0.8333175]
[1720708524064,7.1104,140.64,140.61,0.8333175]
[1720708525256,7.1099,140.65,140.61,0.8333175]
[1720708528758,7.1103,140.64,140.61,0.8333175]
[1720708528952,7.1098,140.65,140.61,0.8333175]
[1720708529558,7.1103,140.64,140.61,0.8333175]
[1720708530186,45.17,140.68,140.61,0.8333175]
[1720708530187,34.3708,140.63,140.61,0.8333175]
[1720708530388,7.1113,140.62,140.61,0.8333175]
[1720708530693,34.3709,140.63,140.61,0.8333175]
[1720708530867,7.1113,140.62,140.61,0.8333175]
[1720708531069,34.371,140.63,140.61,0.8333175]
[1720708531576,7.1113,140.62,140.61,0.8333175]
[1720708532159,52.1113,140.62,140.61,0.8333175]
[1720708532779,7.1132,140.59,140.54,22.6322]
[1720708532967,34.3732,140.59,140.54,29.7475]
[1720708533381,27.26,140.59,140.54,29.7475]
[1720708533587,27.26,140.59,140.55,7.1145]
[1720708533909,7.1119,140.61,140.55,7.1145]
[1720708534270,7.1123,140.6,140.55,7.1145]
[1720708534583,53.50612115,140.62,140.54,47.5351]
[1720708534896,7.1128,140.59,140.54,47.5351]
[1720708535061,34.3725,140.6,140.54,47.0351]
[1720708536086,7.1129,140.59,140.54,39.9197]
[1720708536291,34.3725,140.6,140.55,7.1145]
[1720708536977,27.26,140.6,140.55,7.1145]
[1720708537179,27.26,140.6,140.56,7.1143]
[1720708537571,34.3724,140.6,140.54,39.9197]
[1720708537779,27.26,140.6,140.55,7.1144]
[1720708537981,27.26,140.6,140.56,7.1143]
[1720708538700,27.26,140.6,140.57,0.37931681]
[1720708538996,30.50134881,140.63,140.57,0.37931681]
[1720708539194,27.26,140.63,140.57,0.37931681]
[1720708539497,34.3712,140.63,140.57,7.49301681]
[1720708540392,15.93256428,140.66,140.59,17.782]
[1720708540602,35.76612115,140.66,140.59,17.782]
[1720708540791,7.1102,140.65,140.59,17.782]
[1720708541099,7.1104,140.64,140.59,17.782]
[1720708541296,7.1104,140.64,140.59,24.8945]
[1720708541906,53.53962115,140.66,140.58,7.113]
[1720708542072,7.1109,140.63,140.58,7.113]
[1720708542267,52.11,140.65,140.59,7.1127]
[1720708543384,7.1104,140.64,140.59,7.1127]
[1720708543787,7.11,140.65,140.59,7.1127]
[1720708543989,3.25747272,140.66,140.6,23.2241]
[1720708544196,7.1087,140.68,140.63,7.1105]
[1720708544503,27.26,140.69,140.64,0.46716727]
[1720708544674,34.3681,140.69,140.64,7.57736727]
[1720708545083,34.3681,140.69,140.64,0.46716727]
[1720708545373,34.3681,140.69,140.63,0.46716727]
[1720708545577,7.1084,140.68,140.63,0.46716727]
[1720708545877,7.1084,140.68,140.63,7.57756727]
[1720708546600,27.26,140.66,140.6,23.2241]
[1720708547110,45.0,140.65,140.56,387.3]
[1720708547280,27.26,140.63,140.57,7.1135]
[1720708547481,7.1116,140.62,140.56,394.4142]
[1720708547776,27.26,140.63,140.56,394.4142]
[1720708548206,7.1119,140.61,140.56,394.4142]
[1720708548382,27.26,140.63,140.56,394.4142]
[1720708548584,45.0,140.62,140.55,17.7865]
[1720708548803,27.26,140.6,140.55,17.7865]
[1720708548976,27.26,140.6,140.54,29.8243]
[1720708549699,27.26,140.6,140.55,8.25120838]
[1720708549892,52.1115,140.62,140.56,7.1143]
[1720708550388,45.0,140.62,140.57,8.25004668]
[1720708550701,45.0,140.62,140.51,29.8495]
[1720708550702,7.1142,140.57,140.51,29.8495]
[1720708550880,7.1142,140.57,140.51,22.7331]
[1720708551081,7.1142,140.57,140.52,1.42052854]
[1720708551496,7.1144,140.56,140.52,1.42052854]
[1720708551804,7.1144,140.56,140.51,29.8499]
[1720708552210,7.1144,140.56,140.51,22.7331]
[1720708552374,37.19972406,140.61,140.48,7.1183]
[1720708552375,21.3862,140.57,140.48,7.1183]
[1720708552575,45.0,140.56,140.48,7.1183]
[1720708552771,7.1155,140.54,140.48,7.1183]
[1720708552981,51.51972406,140.56,140.48,7.1183]
[1720708553185,7.1162,140.53,140.47,25.7485175]
[1720708553402,45.80917721,140.61,140.47,22.2133175]
[1720708553613,45.80917721,140.61,140.53,7.1154]
[1720708553614,7.113,140.59,140.53,7.1154]
[1720708553782,7.1132,140.59,140.53,7.1155]
[1720708553990,21.6013,140.61,140.5,1.41816815]
[1720708554175,7.114,140.57,140.51,7.1168]
[1720708554377,7.114,140.57,140.52,1.4179664]
[1720708554608,7.1134,140.58,140.52,8.5341664]
[1720708554915,7.114,140.57,140.52,7.1162]
[1720708555201,7.114,140.57,140.51,26.32636731]
[1720708555591,7.114,140.57,140.52,7.1163]
[1720708555791,7.114,140.57,140.51,26.32636731]
[1720708556199,7.1144,140.56,140.51,26.32636731]
[1720708556420,7.114,140.57,140.51,24.9083]
[1720708556585,7.1144,140.56,140.51,24.9083]
[1720708556907,7.1149,140.55,140.5,7.1172]
[1720708557080,7.1145,140.56,140.51,7.1169]
[1720708557403,7.1145,140.56,140.5,7.1173]
[1720708557608,7.1145,140.56,140.51,7.1168]
[1720708558404,7.114,140.57,140.52,7.1164]
[1720708558706,7.114,140.57,140.51,7.1167]
[1720708559078,7.1145,140.56,140.51,7.1167]
[1720708559487,7.114,140.57,140.51,7.1167]
[1720708560293,45.0,140.59,140.51,7.1167]
[1720708560496,7.114,140.57,140.51,7.1167]
[1720708560694,7.1152,140.55,140.5,17.7932]
[1720708560893,7.1152,140.55,140.5,24.9105]
[1720708561096,7.1146,140.56,140.5,24.9105]
[1720708561438,7.2835,140.58,140.52,7.1163]
[1720708561584,45.0,140.57,140.53,7.1158]
[1720708561780,0.17,140.58,140.53,7.1158]
[1720708561980,29.01888646,140.61,140.56,7.1143]
[1720708562199,10.44612122,140.62,140.57,7.1137]
[1720708562517,10.44612122,140.62,140.57,7.1138]
[1720708562518,3.33472122,140.62,140.57,7.1138]
[1720708562716,7.1109,140.63,140.57,7.1138]
[1720708563095,7.1104,140.64,140.58,7.1133]
[1720708563799,3.2380001,140.65,140.6,7.1119]
[1720708563993,7.1089,140.67,140.61,8.51964627]
[1720708564186,6.0652,140.69,140.62,7.111]
[1720708564496,7.1088,140.67,140.62,7.111]
[1720708564811,7.1088,140.67,140.61,8.51994627]
[1720708565903,9.23319885,140.69,140.6,19.18824667]
[1720708565904,7.1102,140.65,140.6,19.18824667]
[1720708566112,7.1102,140.65,140.6,17.78]
[1720708566489,17.7715,140.68,140.57,17.7846]
[1720708566696,8.09488782,140.67,140.57,17.7846]
[1720708566901,7.1104,140.64,140.58,7.113]
[1720708567227,0.17,140.66,140.6,7.112]
[1720708567228,7.2796,140.66,140.6,7.112]
[1720708567391,45.0,140.65,140.59,24.894]
[1720708567591,7.1104,140.64,140.59,17.7813]
[1720708568026,45.17,140.66,140.58,7.1132]
[1720708568323,7.1104,140.64,140.58,7.1133]
[1720708568699,7.1109,140.63,140.57,7.1137]
[1720708569019,7.1109,140.63,140.58,7.1133]
[1720708569240,45.17,140.66,140.56,24.8995]
[1720708569407,7.1122,140.61,140.56,17.7852]
[1720708570029,7.1129,140.59,140.53,24.9048]
[1720708570598,7.1135,140.58,140.53,24.9048]
[1720708571098,7.1133,140.58,140.53,24.9048]
[1720708571726,52.1128,140.6,140.53,17.7889]
[1720708572024,12.75092851,140.65,140.55,17.7869]
[1720708572326,7.1112,140.63,140.57,7.1134]
[1720708572526,7.1104,140.64,140.57,17.7841]
[1720708572824,7.1104,140.64,140.58,7.1129]
[1720708573018,7.1104,140.64,140.59,0.54973063]
[1720708573398,13.5694,140.65,140.59,7.66253063]
[1720708573605,7.1103,140.65,140.59,18.33133063]
[1720708573827,7.1095,140.66,140.59,18.33133063]
[1720708574035,7.1089,140.67,140.62,7.1113]
[1720708574200,7.1089,140.67,140.61,7.1117]
[1720708574526,7.1099,140.65,140.59,24.894]
[1720708574705,7.1099,140.65,140.6,0.6729005]
[1720708574897,17.7704,140.69,140.59,17.7816]
[1720708574898,7.1104,140.64,140.59,17.7816]
[1720708575099,7.1111,140.63,140.57,7.1137]
[1720708575613,23.31001824,140.67,140.58,17.7829]
[1720708575614,7.1105,140.64,140.58,17.7829]
[1720708575805,7.1099,140.65,140.58,17.7829]
[1720708576125,7.111,140.63,140.58,24.8961]
[1720708576326,7.1104,140.64,140.58,24.8961]
[1720708576696,45.0,140.66,140.58,24.8961]
[1720708576697,7.1108,140.63,140.58,24.8961]
[1720708577433,7.1104,140.64,140.58,24.8961]
[1720708578623,7.1104,140.64,140.59,7.1128]
[1720708578835,45.0,140.66,140.59,0.67691776]
[1720708579003,7.1114,140.62,140.56,7.1142]
[1720708579331,7.1114,140.62,140.57,7.79144909]
[1720708579733,7.1114,140.62,140.57,0.67764909]
[1720708580233,7.1114,140.62,140.57,7.79134909]
[1720708580519,7.1114,140.62,140.57,7.1137]
[1720708580721,7.1118,140.61,140.55,24.9012]
[1720708581101,7.1123,140.6,140.55,17.7865]
[1720708581307,33.093,140.63,140.54,7.1153]
[1720708581499,33.093,140.63,140.53,7.1157]
[1720708581500,45.17,140.62,140.53,7.1157]
[1720708581924,7.1137,140.58,140.52,40.8508]
[1720708582111,7.1129,140.59,140.53,7.1156]
[1720708582421,7.1125,140.6,140.54,7.1151]
[1720708583121,6.5133,140.65,140.52,123.0608]
[1720708583326,7.1112,140.63,140.56,17.7852]
[1720708583534,7.1104,140.64,140.58,17.7832]
[1720708583700,7.1098,140.65,140.59,0.53951859]
[1720708583897,7.1107,140.64,140.59,0.53951859]
[1720708584131,7.1107,140.64,140.59,7.65231859]
[1720708584298,7.1099,140.65,140.6,7.1122]
[1720708584504,3.30960698,140.69,140.63,7.1104]
[1720708584701,7.108,140.69,140.64,1.42181268]
[1720708584918,7.1074,140.7,140.64,1.42181268]
[1720708585127,7.1069,140.71,140.65,7.1094]
[1720708585329,6.1331,140.72,140.66,1.42115453]
[1720708585813,7.1071,140.71,140.66,1.42115453]
[1720708586015,7.1073,140.7,140.66,1.42115453]
[1720708588037,3.21018838,140.72,140.66,8.53045453]
[1720708588205,33.3902,140.75,140.67,8.53013089]
[1720708588408,7.1052,140.75,140.67,24.08183089]